bitfinex/quotes_ETHUSD_20250511
["timestamp","ask_amount","ask_price","bid_price","bid_amount"]
[1746943988170,3.95054383,2531.3,2531.0,0.824]
[1746943988363,7.18745414,2531.4,2531.0,0.824]
[1746943988672,0.36476454,2531.3,2531.0,0.824]
[1746943989992,0.36476454,2531.3,2531.0,1.07849063]
[1746943990197,0.29182855,2531.8,2531.1,1.71590633]
[1746943990484,7.18466284,2531.9,2531.2,0.824]
[1746943990855,3.0,2531.6,2531.2,0.824]
[1746943991550,3.0,2531.6,2531.3,1.71590633]
[1746943991758,3.04107803,2532.6,2531.6,0.824]
[1746943991759,3.234,2532.4,2531.6,0.824]
[1746943991968,7.18292496,2532.4,2531.8,0.824]
[1746943992194,3.234,2532.4,2531.8,0.824]
[1746943992392,0.21877642,2532.3,2531.8,0.824]
[1746943992779,0.36456036,2532.2,2531.8,0.824]
[1746943993570,0.36456036,2532.1,2531.8,0.824]
[1746943993776,0.36456036,2532.1,2531.8,1.07799063]
[1746943994094,0.36456036,2532.1,2531.8,0.824]
[1746943994496,3.53288369,2532.4,2531.8,0.824]
[1746943994659,0.21864517,2532.3,2531.8,0.824]
[1746943995404,3.231,2532.5,2531.8,0.824]
[1746943995905,3.94844218,2532.7,2531.9,0.03949264]
[1746943996062,3.23,2532.5,2531.9,0.03949264]
[1746943996400,4.76825591,2532.9,2531.9,0.03949264]
[1746943996401,3.0,2532.3,2532.0,0.824]
[1746943996602,6.94911251,2532.3,2532.0,0.824]
[1746943996810,3.94922319,2532.2,2531.4,0.824]
[1746943997021,3.94922319,2532.2,2531.5,0.76211081]
[1746943997303,3.9490449,2532.3,2531.5,0.76211081]
[1746943997601,3.9490449,2532.3,2531.4,0.824]
[1746943997602,3.94924251,2532.2,2531.4,0.824]
[1746943997916,3.6173135,2532.2,2531.4,0.824]
[1746943998210,3.94937238,2532.1,2531.4,0.824]
[1746943998413,7.17737238,2532.1,2531.4,0.824]
[1746943998582,0.3643135,2532.0,2531.4,0.824]
[1746944000100,4.31383362,2532.0,2531.4,0.824]
[1746944000279,3.94961441,2531.9,2531.4,0.824]
[1746944000615,0.3643135,2531.9,2531.0,0.8224]
[1746944000773,3.95019033,2531.6,2531.0,0.8224]
[1746944001305,3.5923135,2531.5,2531.0,0.8224]
[1746944001479,3.226,2531.4,2531.0,0.8224]
[1746944005510,4.72203946,2532.1,2531.1,0.03950679]
[1746944005666,6.45,2531.7,2531.1,0.03950679]
[1746944006088,6.45,2531.9,2531.2,0.779]
[1746944006527,0.36432115,2531.8,2531.2,0.779]
[1746944007400,0.36432115,2531.7,2531.2,0.779]
[1746944008011,0.36432115,2531.8,2531.2,0.779]
[1746944008814,3.59232115,2531.9,2531.2,0.779]
[1746944009315,7.54197728,2531.9,2531.2,0.779]
[1746944009518,0.218719,2531.8,2531.2,0.779]
[1746944010215,0.36432115,2531.7,2531.2,0.779]
[1746944010910,0.36432115,2531.8,2531.2,0.779]
[1746944012915,0.36432115,2531.8,2531.3,0.87020188]
[1746944013213,0.36432115,2531.8,2531.5,0.8307]
[1746944013979,3.94966351,2531.9,2531.5,0.8307]
[1746944014619,4.3138224,2532.0,2531.5,0.8307]
[1746944014806,0.21868893,2531.9,2531.5,0.8307]
[1746944015007,0.36448492,2531.8,2531.5,0.8307]
[1746944015307,1.13908492,2531.8,2531.1,0.8307]
[1746944015681,5.0889091,2531.8,2531.1,0.8307]
[1746944015983,4.31424455,2531.8,2531.1,1.71427]
[1746944016319,0.36448492,2531.8,2531.1,0.8307]
[1746944016620,0.36448492,2531.7,2531.1,0.8307]
[1746944017094,0.36448492,2531.6,2531.1,0.8307]
[1746944017821,0.36448492,2531.8,2531.1,0.8307]
[1746944018117,3.59248492,2531.8,2531.1,0.87020605]
[1746944018318,3.59248492,2531.8,2531.2,0.25854661]
[1746944018524,7.54224962,2531.8,2531.2,0.25854661]
[1746944018733,3.59248492,2531.8,2531.2,0.25854661]
[1746944019022,0.36448492,2531.7,2531.2,0.25854661]
[1746944019918,0.36448492,2531.7,2531.3,0.7852]
[1746944020088,0.36448492,2531.7,2531.4,0.27590066]
[1746944020424,0.36448492,2531.7,2531.3,0.7852]
[1746944020890,0.36448492,2531.9,2531.3,0.7852]
[1746944021092,3.95015958,2531.6,2531.3,0.7852]
[1746944021291,0.7595,2531.8,2531.0,0.8134]
[1746944021494,3.9505029,2531.4,2531.0,0.8134]
[1746944021796,0.36448492,2531.3,2531.0,0.8134]
[1746944022383,4.31511067,2531.3,2530.9,0.005]
[1746944022597,0.36448492,2531.3,2530.9,0.005]
[1746944023321,2.49816001,2531.2,2530.9,0.005]
[1746944023528,8.16442752,2531.0,2530.9,0.005]
[1746944023713,3.95261265,2530.0,2529.6,0.8239]
[1746944024029,3.228,2529.9,2529.6,0.8239]
[1746944024255,0.989,2530.5,2529.6,2.53916001]
[1746944024392,3.4351,2530.5,2529.8,1.71526001]
[1746944024592,3.4351,2530.5,2529.9,0.8239]
[1746944024786,3.73786109,2530.5,2529.9,0.8239]
[1746944025943,0.2061,2530.5,2529.9,0.8239]
[1746944026245,0.2061,2530.5,2530.2,0.8239]
[1746944028219,0.2061,2530.5,2530.3,1.75477901]
[1746944028558,0.2061,2530.5,2530.4,0.2578679]
[1746944028913,0.2061,2530.5,2529.3,3.203]
[1746944029116,3.4091,2530.5,2529.9,0.7965]
[1746944029314,3.95197853,2530.4,2529.9,0.7965]
[1746944029638,3.203,2530.5,2529.9,0.7965]
[1746944030247,3.95097066,2531.1,2530.0,1.71526001]
[1746944030248,0.36360627,2530.4,2530.0,1.71526001]
[1746944030437,0.36360627,2530.4,2529.9,0.7965]
[1746944031247,3.95149671,2530.7,2529.9,0.7965]
[1746944031763,7.15437617,2530.8,2529.9,0.7965]
[1746944031929,4.31487105,2530.7,2529.9,0.7965]
[1746944032465,0.36337968,2530.7,2529.9,0.7965]
[1746944032617,0.7859,2529.9,2529.2,0.005]
[1746944032824,3.9530379,2529.7,2529.2,0.005]
[1746944033071,6.403,2529.6,2529.2,0.005]
[1746944033274,3.95343908,2529.5,2529.2,0.005]
[1746944033570,3.95359636,2529.4,2529.2,0.005]
[1746944033744,3.95340819,2529.5,2529.2,0.005]
[1746944034070,10.35625804,2529.6,2529.2,0.005]
[1746944034770,4.73925046,2529.5,2529.2,0.005]
[1746944035066,3.95351859,2529.4,2529.2,0.005]
[1746944035286,3.95366306,2529.3,2529.2,0.005]
[1746944035868,4.25484037,2529.3,2529.2,0.005]
[1746944039657,0.30117731,2529.3,2529.2,0.005]
[1746944039857,3.205,2529.4,2529.2,0.005]
[1746944040065,7.1585307,2529.4,2529.2,0.005]
[1746944040447,7.15857317,2529.4,2529.2,0.005]
[1746944040656,7.46175588,2529.4,2529.2,0.005]
[1746944040973,3.50818271,2529.4,2529.2,0.005]
[1746944041346,7.46170738,2529.4,2529.2,0.005]
[1746944041746,0.30318271,2529.4,2529.3,0.7936]
[1746944041969,7.15779839,2529.9,2529.3,0.7936]
[1746944042245,7.45674182,2529.9,2529.3,0.7936]
[1746944042652,0.29894343,2529.9,2529.3,0.7936]
[1746944042851,0.8028,2530.7,2529.4,3.61504368]
[1746944043067,7.15638639,2530.8,2529.8,0.7788]
[1746944043276,3.205,2530.8,2530.0,3.57550882]
[1746944043482,3.205,2530.8,2530.2,0.7788]
[1746944044172,4.09049854,2532.2,2530.6,3.57550882]
[1746944044383,4.09049854,2532.2,2530.9,3.57550882]
[1746944044384,0.8028,2532.1,2530.9,3.57550882]
[1746944044688,4.09049854,2532.2,2531.1,0.7788]
[1746944044849,2.90420503,2532.2,2531.4,0.7788]
[1746944045046,2.6017338,2532.2,2531.6,3.57550882]
[1746944045240,2.6017338,2532.2,2531.9,3.57550882]
[1746944045553,2.6017338,2532.2,2531.9,3.61500023]
[1746944045876,2.6017338,2532.2,2532.1,0.7788]
[1746944046258,2.6017338,2532.2,2531.4,8.7788]
[1746944046580,2.6017338,2532.2,2531.4,0.7788]
[1746944047281,2.6017338,2532.2,2531.5,0.03949862]
[1746944047578,2.6017338,2532.2,2531.4,8.7788]
[1746944047783,2.6017338,2532.2,2531.5,0.87788]
[1746944048195,2.6017338,2532.2,2531.6,0.03949488]
[1746944048490,3.204,2532.5,2531.6,0.03949488]
[1746944049111,4.37950882,2533.1,2531.7,0.8209]
[1746944049252,6.392,2533.0,2531.8,0.03949157]
[1746944049456,3.94857285,2532.6,2531.7,0.8209]
[1746944049705,3.57550882,2532.8,2531.7,0.8209]
[1746944050057,4.75358283,2532.0,2531.3,0.8209]
[1746944050394,3.204,2531.9,2531.3,0.8209]
[1746944051970,7.15367331,2531.9,2531.3,0.8209]
[1746944052172,3.204,2531.9,2531.3,0.8209]
[1746944052581,3.94988915,2531.8,2530.8,0.03950485]
[1746944052794,3.94988915,2531.8,2530.4,0.8209]
[1746944052795,3.57550882,2531.6,2530.4,0.8209]
[1746944052956,3.95064073,2531.3,2530.4,0.8209]
[1746944053162,3.57550882,2531.7,2530.4,0.8209]
[1746944053898,3.87216616,2531.7,2530.4,0.8209]
[1746944054100,3.95020636,2531.6,2530.5,0.0395125]
[1746944055100,3.95020636,2531.6,2530.4,0.8209]
[1746944055465,3.95022713,2531.5,2530.5,0.03950955]
[1746944055672,3.87216616,2531.7,2530.4,0.8209]
[1746944055920,3.87216616,2531.7,2530.4,2.02139]
[1746944056072,3.87216616,2531.7,2530.5,0.03951233]
[1746944056273,3.9504996,2531.4,2530.4,2.02139]
[1746944056469,3.95055367,2531.3,2530.4,2.02139]
[1746944056672,3.95147335,2530.8,2530.4,0.8209]
[1746944057009,3.95147481,2530.8,2530.4,0.8209]
[1746944057221,3.57550882,2531.1,2530.4,0.8209]
[1746944057373,3.95143589,2530.8,2530.4,0.8209]
[1746944057715,3.95122237,2530.9,2530.4,0.8209]
[1746944058075,3.57550882,2531.1,2530.4,0.8209]
[1746944058772,0.8066,2531.2,2530.4,0.8209]
[1746944059008,7.13266513,2531.3,2530.4,0.8209]
[1746944059376,3.182,2531.3,2530.4,0.8209]
[1746944059578,7.13265501,2531.3,2530.5,0.03951407]
[1746944059908,3.182,2531.3,2530.5,0.03951407]
[1746944060804,3.182,2531.5,2530.6,0.8287]
[1746944061109,3.47865734,2531.7,2530.8,0.8287]
[1746944061410,7.42863494,2531.7,2530.8,0.8287]
[1746944061903,3.95024345,2531.5,2530.8,0.8287]
[1746944062209,3.47865734,2531.7,2530.8,0.8287]
[1746944062507,3.95032624,2531.5,2530.8,0.8287]
[1746944062887,3.182,2531.4,2530.8,0.8287]
[1746944063782,3.95023302,2531.5,2530.8,0.8287]
[1746944063783,3.95011465,2531.6,2530.8,0.8287]
[1746944064106,7.13234692,2531.5,2530.8,0.8287]
[1746944064310,3.95038489,2531.4,2530.8,0.8287]
[1746944064519,7.13223789,2531.5,2530.8,0.8287]
[1746944065526,0.8147,2532.0,2530.8,0.8287]
[1746944065730,3.182,2531.9,2531.0,0.8287]
[1746944066023,14.218,2532.1,2531.0,0.8287]
[1746944066213,3.182,2532.0,2531.2,0.8287]
[1746944067286,3.57550882,2532.5,2531.3,0.0394996]
[1746944067492,3.182,2532.5,2531.4,0.8287]
[1746944067793,7.13068142,2532.5,2531.6,0.8287]
[1746944067995,7.13068142,2532.5,2531.7,0.03949305]
[1746944068403,3.9492711,2532.2,2531.6,0.8207]
[1746944068915,3.94904734,2532.3,2531.6,0.8207]
[1746944069345,3.94804374,2532.9,2531.7,0.03949706]
[1746944069619,0.8147,2533.0,2531.3,8.55]
[1746944069620,3.94865572,2532.6,2531.3,8.55]
[1746944069788,3.94867071,2532.5,2531.4,1.21255088]
[1746944070203,3.94890057,2532.4,2531.4,1.21255088]
[1746944070829,10.70473504,2532.8,2531.4,1.21255088]
[1746944071137,3.94879568,2532.5,2531.5,0.8328]
[1746944071432,3.94879568,2532.5,2531.5,8.8328]
[1746944071732,3.94883552,2532.4,2531.6,1.32193509]
[1746944072098,3.94878726,2532.5,2531.5,0.8328]
[1746944072734,6.75650882,2532.8,2531.5,0.8328]
[1746944072939,3.94889722,2532.4,2531.5,0.8328]
[1746944073138,3.94870987,2532.5,2531.5,0.8328]
[1746944073436,3.94945616,2532.0,2531.5,0.8328]
[1746944074500,3.9500551,2531.7,2530.7,0.8149]
[1746944074696,3.94981474,2531.8,2530.9,0.8149]
[1746944075509,3.94939375,2532.1,2531.1,0.8149]
[1746944075715,3.57550882,2532.5,2531.3,0.8149]
[1746944075909,0.8333,2532.7,2530.8,4.0695497]
[1746944075910,7.1299048,2532.4,2531.5,0.8149]
[1746944076114,3.94898346,2532.3,2531.6,0.03949553]
[1746944076415,7.12952107,2532.6,2531.7,0.8149]
[1746944076612,7.12952107,2532.6,2531.8,0.85439209]
[1746944076835,3.9487049,2532.5,2531.8,0.8149]
[1746944078140,3.48008446,2532.6,2531.8,0.8149]
[1746944078350,3.94873092,2532.5,2531.8,0.8149]
[1746944078921,3.181,2532.8,2531.8,8.0]
[1746944079251,7.12922375,2532.8,2532.0,0.8002]
[1746944079447,3.9483555,2532.7,2532.0,0.8002]
[1746944079654,3.94876902,2532.5,2532.0,0.8002]
[1746944079953,3.94884144,2532.4,2532.0,0.8002]
[1746944080159,3.94915233,2532.2,2532.0,0.8002]
[1746944080448,3.94886619,2532.4,2532.0,0.8002]
[1746944080648,11.76822975,2532.8,2532.0,0.8002]
[1746944080848,3.94890551,2532.4,2532.0,0.8002]
[1746944081451,3.94871277,2532.5,2532.0,0.8002]
[1746944082053,3.94877311,2532.5,2532.0,0.8002]
[1746944082247,3.48097275,2532.8,2532.0,0.8002]
[1746944082455,3.94805324,2532.9,2532.0,0.8002]
[1746944082751,3.181,2532.7,2532.0,0.8002]
[1746944083558,3.94794977,2533.0,2532.1,0.03948554]
[1746944083851,7.12905089,2532.9,2532.0,0.8002]
[1746944084014,3.94831984,2532.8,2532.0,0.8002]
[1746944084214,3.181,2532.9,2532.0,0.8002]
[1746944084451,7.1291894,2532.9,2532.0,0.8002]
[1746944084844,7.12908941,2532.9,2532.0,0.8002]
[1746944085052,3.181,2532.9,2532.0,0.8002]
[1746944085255,3.181,2532.9,2532.1,0.81658759]
[1746944085553,3.94793746,2533.0,2532.1,0.81658759]
[1746944085760,3.181,2533.0,2532.1,0.81658759]
[1746944086451,0.30124083,2533.1,2532.1,0.81658759]
[1746944086763,3.94748074,2533.3,2532.1,8.03948759]
[1746944086924,4.24972798,2533.3,2532.3,0.7771]
[1746944087123,7.42972798,2533.3,2532.4,0.7771]
[1746944087324,3.94700554,2533.6,2532.5,0.03948029]
[1746944087560,3.94667586,2533.8,2532.6,0.7771]
[1746944087854,3.94736791,2533.4,2532.6,0.7771]
[1746944088017,3.18,2533.7,2532.6,0.7771]
[1746944088214,3.947758,2533.1,2532.6,0.7771]
[1746944088454,0.8306,2533.5,2532.6,0.7771]
[1746944088638,3.94782371,2533.1,2532.6,0.7771]
[1746944089243,3.94791868,2533.0,2532.6,0.7771]
[1746944089445,3.94782424,2533.1,2532.6,0.7771]
[1746944089655,3.94792812,2533.0,2532.6,0.7771]
[1746944090459,3.94747175,2533.3,2532.6,0.7771]
[1746944090630,3.94767745,2533.2,2532.6,0.7771]
[1746944090831,3.94776743,2533.1,2532.6,0.7771]
[1746944091352,3.94802808,2533.0,2532.6,0.7771]
[1746944092169,3.94812333,2532.9,2532.6,0.7771]
[1746944093624,7.10897777,2533.0,2532.6,0.7771]
[1746944094856,3.161,2533.0,2532.6,0.7771]
[1746944095043,3.94805347,2532.9,2532.6,0.7771]
[1746944095770,3.161,2533.0,2532.6,0.7771]
[1746944096070,7.10891522,2533.0,2532.6,0.7771]
[1746944096260,3.94810678,2532.9,2532.6,0.7771]
[1746944096568,3.161,2533.0,2532.6,0.7771]
[1746944097295,7.10888889,2533.0,2532.6,0.7771]
[1746944098494,3.94815153,2532.9,2532.6,0.7771]
[1746944098993,3.161,2533.0,2532.6,0.7771]
[1746944099184,7.1089939,2533.0,2532.6,0.7771]
[1746944101326,3.94819967,2532.8,2532.6,0.7771]
[1746944102415,3.161,2533.0,2532.6,0.7771]
[1746944103514,7.10891784,2533.0,2532.6,0.7771]
[1746944103714,7.10891669,2533.0,2532.6,0.7771]
[1746944104429,3.161,2533.0,2532.6,0.7771]
[1746944104725,3.161,2533.0,2531.7,3.153]
[1746944104726,0.7994,2532.9,2532.0,0.8137]
[1746944105027,3.94894512,2532.4,2532.0,0.8137]
[1746944105190,3.94874189,2532.5,2532.0,0.8137]
[1746944105696,3.94885445,2532.4,2532.0,0.8137]
[1746944105902,3.94968858,2531.9,2531.7,0.8137]
[1746944106143,3.94968858,2531.9,2530.9,0.8137]
[1746944106585,3.94975906,2531.8,2530.9,0.8137]
[1746944106785,3.95009023,2531.6,2530.9,0.8137]
[1746944107027,7.52765654,2532.3,2530.9,0.8137]
[1746944107229,3.95069653,2531.2,2530.9,1.26057409]
[1746944107393,3.95068207,2531.3,2530.9,0.8137]
[1746944107725,3.9604,2531.6,2530.9,0.8137]
[1746944108027,4.25301417,2531.6,2530.9,0.8137]
[1746944108331,3.161,2532.0,2531.0,0.03951226]
[1746944108621,4.36665654,2532.3,2531.0,0.03951226]
[1746944108622,3.161,2532.3,2531.2,0.8137]
[1746944108823,3.161,2532.3,2531.4,0.8137]
[1746944109190,7.51535651,2532.9,2531.5,1.40319698]
[1746944109392,6.309,2532.8,2531.8,0.8137]
[1746944109627,6.309,2532.8,2532.0,0.8137]
[1746944109924,3.94897137,2532.4,2532.0,0.8137]
[1746944110224,3.94902498,2532.3,2532.0,0.8137]
[1746944111015,3.94888104,2532.4,2532.0,0.8137]
[1746944111524,11.94870697,2532.5,2532.0,0.8137]
[1746944111898,3.94884629,2532.4,2532.0,0.8137]
[1746944112330,3.94909048,2532.3,2532.0,0.8137]
[1746944112529,14.60575885,2532.8,2532.0,0.8137]
[1746944112730,3.94875626,2532.5,2532.0,0.8137]
[1746944113236,11.94857896,2532.6,2532.0,0.8137]
[1746944113399,0.21779407,2532.7,2532.0,0.8137]
[1746944113730,0.29675885,2532.8,2532.0,0.8137]
[1746944113934,10.25408487,2532.9,2532.0,0.8137]
[1746944114301,14.306,2532.9,2532.0,0.8137]
[1746944114717,0.7823,2533.2,2532.0,0.8137]
[1746944114718,8.0,2533.2,2532.0,0.8137]
[1746944114918,3.94809607,2532.9,2532.0,0.8137]
[1746944115118,4.24301842,2532.9,2532.0,0.8137]
[1746944115650,10.25284656,2533.1,2532.1,0.03948846]
[1746944115831,10.25284656,2533.1,2531.9,0.7727]
[1746944116030,14.211,2533.4,2532.1,0.7727]
[1746944116222,3.161,2533.3,2532.3,0.7727]
[1746944116424,3.161,2533.3,2532.4,0.81218001]
[1746944116740,3.161,2533.3,2532.6,0.7727]
[1746944116943,0.7823,2534.1,2532.8,0.7727]
[1746944117149,8.0,2533.9,2533.0,0.7727]
[1746944117321,3.161,2533.9,2533.0,0.7727]
[1746944117525,3.94669034,2533.8,2533.0,0.7727]
[1746944117961,7.10755527,2533.9,2533.0,0.7727]
[1746944118263,0.1498183,2533.8,2533.0,0.7727]
[1746944120301,3.94673733,2533.8,2533.1,0.43810537]
[1746944120597,0.11210545,2533.7,2533.0,0.7727]
[1746944121001,3.94680162,2533.7,2533.0,0.7727]
[1746944121157,0.11184715,2533.6,2533.0,0.7727]
[1746944121700,4.05891941,2533.6,2533.0,0.7727]
[1746944121904,0.11184715,2533.6,2533.0,0.7727]
[1746944122329,4.05880719,2533.6,2533.0,0.7727]
[1746944122487,0.11184715,2533.6,2533.0,0.7727]
[1746944123915,3.94666666,2533.8,2533.0,0.7727]
[1746944123916,0.11158882,2533.5,2533.1,0.03947459]
[1746944124420,11.94655094,2533.9,2533.1,0.03947459]
[1746944124601,0.11133048,2533.4,2533.1,0.03947459]
[1746944124923,0.11107212,2533.3,2533.2,0.7532]
[1746944125285,3.94611446,2534.2,2533.2,0.7532]
[1746944125620,3.94656918,2533.9,2533.2,0.7532]
[1746944125795,0.11313845,2534.1,2533.2,0.7532]
[1746944125997,0.11236373,2533.8,2533.2,0.7532]
[1746944126205,0.11210545,2533.7,2533.2,0.7532]
[1746944126724,0.11184715,2533.6,2533.2,0.7532]
[1746944127236,15.38674698,2534.2,2533.2,0.7532]
[1746944127431,0.11158882,2533.5,2533.2,0.7532]
[1746944127597,3.94649759,2533.9,2533.2,0.7532]
[1746944127801,0.11133048,2533.4,2533.2,0.7532]
[1746944128029,11.44068053,2534.2,2533.2,0.7532]
[1746944128191,0.11107212,2533.3,2533.2,0.7532]
[1746944128390,7.38670251,2534.2,2533.2,0.7532]
[1746944128593,3.44068053,2534.2,2533.2,0.7532]
[1746944128792,0.11313845,2534.1,2533.2,0.7532]
[1746944129213,0.11313845,2534.1,2533.3,0.85466801]
[1746944129619,0.11288023,2534.0,2533.3,0.85466801]
[1746944129837,14.212,2534.4,2533.5,0.8152]
[1746944130134,0.11365483,2534.3,2533.5,0.8152]
[1746944130321,4.05959369,2534.3,2533.5,0.8152]
[1746944130515,0.11365483,2534.3,2533.5,0.8152]
[1746944130927,0.11365483,2534.3,2533.6,0.85466403]
[1746944131595,0.11365483,2534.3,2533.6,0.8152]
[1746944132029,0.11365483,2534.3,2533.8,0.8152]
[1746944132215,3.95481462,2535.0,2533.9,0.55]
[1746944132419,0.01,2535.0,2534.0,0.8152]
[1746944132724,0.09216278,2534.9,2534.0,0.8152]
[1746944133295,4.03711697,2534.9,2534.0,0.8152]
[1746944133534,0.09216278,2534.9,2534.0,2.00972]
[1746944133825,8.09216278,2534.9,2534.1,0.8152]
[1746944134028,0.09216278,2534.9,2534.3,0.8152]
[1746944134233,3.94527476,2534.7,2534.3,0.8152]
[1746944134638,0.08423686,2534.6,2534.3,0.8152]
[1746944135544,3.94511381,2534.8,2534.3,0.8152]
[1746944135747,0.01,2535.0,2534.3,0.8152]
[1746944135949,0.08437513,2534.7,2534.3,0.8152]
[1746944136150,0.01,2535.0,2534.3,0.8152]
[1746944136538,0.08471922,2534.9,2534.3,0.8152]
[1746944138362,4.02965905,2534.9,2534.3,0.8152]
[1746944138712,0.08471922,2534.9,2534.3,0.8152]
[1746944138919,0.01,2535.0,2534.5,0.8152]
[1746944139214,0.08500647,2534.9,2534.7,0.8152]
[1746944141618,0.01,2535.0,2534.1,11.5614912]
[1746944141619,0.01,2535.0,2534.8,0.03944658]
[1746944141848,0.01,2535.0,2534.4,0.7742]
[1746944142066,0.08234368,2534.9,2534.6,0.7742]
[1746944142270,0.08234368,2534.9,2534.8,0.7742]
[1746944144560,0.08234368,2534.9,2534.6,0.8316]
[1746944146132,0.01,2535.0,2534.6,0.8316]
[1746944146352,0.08234368,2534.9,2534.6,0.8316]
[1746944146745,0.01,2535.0,2534.6,0.8316]
[1746944147183,0.08347577,2534.9,2534.7,0.03944564]
[1746944147386,0.08347577,2534.9,2534.8,0.8316]
[1746944147738,0.01,2535.0,2534.8,0.8316]
[1746944147935,0.01,2535.0,2534.9,4.53704283]
[1746944148168,0.01,2535.0,2534.9,14.4193534]
[1746944148881,0.01,2535.0,2534.9,11.2813534]
[1746944149185,0.01,2535.0,2534.9,10.7313534]
[1746944151103,0.01,2535.0,2534.9,11.2813534]
[1746944151677,0.01,2535.0,2534.9,10.7313534]
[1746944151870,0.01,2535.0,2534.9,11.2813534]
[1746944155277,0.01,2535.0,2534.9,10.7313534]
[1746944159494,0.01,2535.0,2534.9,2.7313534]
[1746944160361,0.01,2535.0,2534.9,2.77079545]
[1746944160561,0.01,2535.0,2534.9,10.77079545]
[1746944160747,0.01,2535.0,2534.9,10.7313534]
[1746944163723,0.01,2535.0,2534.9,11.2813534]
[1746944165227,0.01,2535.0,2534.9,38.4155334]
[1746944165432,0.01,2535.0,2534.9,33.7460134]
[1746944165675,0.017395,2535.8,2535.0,8.55]
[1746944165889,0.017395,2535.8,2535.3,0.55]
[1746944167343,0.017395,2535.8,2535.5,0.799]
[1746944167549,0.017395,2535.8,2535.6,0.03943073]
[1746944167751,0.017395,2535.8,2535.6,0.55]
[1746944167955,0.017395,2535.8,2535.5,0.799]
[1746944170162,0.017395,2535.8,2535.2,6.6674912]
[1746944170362,0.017395,2535.8,2535.3,1.47024912]
[1746944170972,0.017395,2535.8,2535.3,12.57324912]
[1746944171841,0.767595,2535.8,2535.3,0.66674912]
[1746944172077,0.87792043,2535.8,2535.0,0.8035]
[1746944172314,0.87792043,2535.8,2535.1,0.03943742]
[1746944172494,0.87792043,2535.8,2535.0,0.8035]
[1746944172803,0.87792043,2535.8,2535.1,0.39045]
[1746944174203,0.12772043,2535.8,2535.1,0.39045]
[1746944176103,0.12772043,2535.8,2535.2,0.03943827]
[1746944176707,0.12772043,2535.8,2535.1,0.39045]
[1746944176891,0.12772043,2535.8,2535.2,0.03943827]
[1746944177200,0.12772043,2535.8,2535.3,8.84293456]
[1746944177605,0.017395,2535.8,2535.3,8.84293456]
[1746944177815,0.017395,2535.8,2535.3,0.8035]
[1746944178270,0.12772043,2535.8,2535.3,0.8035]
[1746944178482,0.017395,2535.8,2535.3,0.8035]
[1746944178796,0.12772043,2535.8,2535.3,0.8035]
[1746944179091,0.017395,2535.8,2535.3,0.8035]
[1746944179294,0.12772043,2535.8,2535.3,0.8035]
[1746944180790,0.12772043,2535.8,2535.3,8.8035]
[1746944180972,0.12772043,2535.8,2535.4,1.328833]
[1746944181607,0.12772043,2535.8,2535.5,0.03943318]
[1746944182376,0.017395,2535.8,2535.5,0.03943318]
[1746944183411,0.017395,2535.8,2535.6,0.55]
[1746944185405,0.017395,2535.8,2535.7,1.3333]
[1746944185625,0.017395,2535.8,2535.7,10.18717912]
[1746944185996,0.017395,2535.8,2535.7,9.63717912]
[1746944186309,0.017395,2535.8,2535.7,8.85387912]
[1746944187490,0.12782168,2535.8,2535.7,8.85387912]
[1746944187687,0.017395,2535.8,2535.7,8.85387912]
[1746944188420,0.017395,2535.8,2535.7,1.40387912]
[1746944189194,0.017395,2535.8,2535.7,2.19247912]
[1746944189394,0.805,2536.9,2535.9,0.7886]
[1746944189591,0.805,2536.9,2536.1,8.0]
[1746944189814,0.0917606,2536.8,2536.2,1.4184]
[1746944190815,0.0917606,2536.8,2536.3,0.03941989]
[1746944191061,0.0917606,2536.8,2536.5,0.55]
[1746944191329,0.805,2536.9,2536.5,0.55]
[1746944191619,0.09299561,2536.8,2536.5,0.55]
[1746944192115,0.805,2537.1,2536.5,0.55]
[1746944192321,0.805,2537.1,2536.4,0.7886]
[1746944192502,0.09340783,2537.0,2536.4,0.7886]
[1746944194014,0.09340783,2537.0,2536.5,0.55]
[1746944194217,0.09340783,2537.0,2536.4,1.08274255]
[1746944194439,0.09340783,2537.0,2536.5,0.87886]
[1746944194614,0.805,2537.1,2536.5,0.87886]
[1746944194921,0.08006385,2536.9,2536.5,0.87886]
[1746944195128,0.08023561,2537.0,2536.5,0.87886]
[1746944195420,0.08006385,2536.9,2536.5,0.87886]
[1746944195782,0.805,2537.1,2536.5,0.87886]
[1746944196022,0.08092706,2537.0,2536.5,0.87886]
[1746944198411,0.11070236,2537.0,2536.5,0.87886]
[1746944199004,0.11070236,2537.0,2536.3,3.082]
[1746944199804,0.11070236,2537.0,2536.3,4.79039971]
[1746944200441,0.11070236,2537.0,2536.5,1.70839971]
[1746944200610,0.11070236,2537.0,2536.6,0.03941506]
[1746944204342,0.11070236,2537.0,2536.5,1.70839971]
[1746944204639,0.11070236,2537.0,2536.6,8.97083997]
[1746944205039,0.11070236,2537.0,2536.6,0.97083997]
[1746944205239,0.11070236,2537.0,2536.4,3.077]
[1746944206421,0.11070236,2537.0,2536.3,13.07438327]
[1746944208645,0.11070236,2537.0,2536.5,0.008]
[1746944209012,0.7511,2536.9,2536.5,0.008]
[1746944209411,0.11044472,2536.8,2536.5,0.008]
[1746944212939,0.7511,2536.9,2536.5,0.008]
[1746944213141,0.86129562,2536.9,2536.3,12.78239971]
[1746944213347,0.86129562,2536.9,2536.4,1.72947997]
[1746944219054,0.781,2536.8,2536.4,1.72947997]
[1746944219257,0.781,2536.8,2536.3,8.03942258]
[1746944220251,0.781,2536.8,2536.4,1.70839971]
[1746944220421,0.781,2536.8,2536.5,0.03941872]
[1746944220625,0.781,2536.8,2536.4,1.70839971]
[1746944220922,0.781,2536.8,2536.2,10.00996011]
[1746944221133,0.781,2536.8,2536.3,1.30809601]
[1746944222222,0.781,2536.8,2536.3,9.30809601]
[1746944222843,0.781,2536.8,2536.3,1.30809601]
[1746944223049,0.781,2536.8,2536.2,10.00996011]